Cogmind - Beta 14 *** ADVENTURER MODE // 2024.09.17 @ 07:42:20 // Winter2019/RPGLIKE Player: Gallgagger Result: Self-destructed Performance ------------- Evolutions (3) 1500 Regions Visited (8) 1600 Robots Destroyed (52) 260 Value Destroyed (1558) 1558 Prototype IDs (4) 80 Alien Tech Used (0) 0 Bonus (-152) -152 TOTAL SCORE: 4846 Bonus ------- High Alert Combat Kills 48 Follower Combat Kills 80 Friendly Fire -280 Cogmind --------- Core Integrity 567/600 Matter 226/300 Energy 303/305 System Corruption 2% Temperature Cool (5) Movement Flying (28) Location -7/Factory Parts ------- > --- POWER (2) -------- Improved Ion Engine Light Deuterium Engine > --- PROPULSION (5) --- Xenon Bombardment Thruster Xenon Bombardment Thruster Xenon Bombardment Thruster Xenon Bombardment Thruster Xenon Bombardment Thruster > --- UTILITY (4) ------ Experimental Sensor Array Improved Signal Interpreter Improved Melee Analysis Suite Particle Charger > --- WEAPON (3) ------- Smartbomb Launcher Katana > --- INVENTORY (1) ---- Improved Ion Engine Peak State ------------ > --- POWER ------------ Improved Ion Engine Light Deuterium Engine > --- PROPULSION ------- Xenon Bombardment Thruster Xenon Bombardment Thruster Xenon Bombardment Thruster Xenon Bombardment Thruster Xenon Bombardment Thruster > --- UTILITY ---------- Experimental Sensor Array Improved Signal Interpreter Improved Melee Analysis Suite Particle Charger > --- WEAPON ----------- Smartbomb Launcher Katana > --- INVENTORY -------- Improved Ion Engine [Rating: 59] Favorites ----------- Power Improved Ion Engine Engine Improved Ion Engine Propulsion Flight Unit Leg Carbon-fiber Leg Wheel Compact Wheel Hover Unit Hover Unit Flight Unit Flight Unit Utility Improved Signal Interpreter Device Sensor Array Processor Improved Signal Interpreter Weapon Heavy Ion Cannon Energy Gun Particle Gun Energy Cannon Heavy Ion Cannon Ballistic Gun Light Assault Rifle Launcher Smartbomb Launcher Slashing Weapon Katana Build | -11 -10 -10 -10 -9 -8 -7 -7 -7 ------- Run | Yrd Mat Min Exi Min Mat Fac Was Fac Slots Evolved 10 | 4 1 . . . 4 1 . . Power 1 | 1 . . . . . . . . Propulsion 4 | 1 1 . . . 1 1 . . Utility 3 | 1 . . . . 2 . . . Weapon 2 | 1 . . . . 1 . . . Parts Attached 38 | 6 8 5 . . 16 2 1 . Power 5 | 2 . 2 . . 1 . . . Engine 5 | 2 . 2 . . 1 . . . Core . | . . . . . . . . . Reactor . | . . . . . . . . . Propulsion 16 | 2 6 . . . 7 1 . . Treads . | . . . . . . . . . Leg 3 | . . . . . 3 . . . Wheel 2 | 2 . . . . . . . . Hover 2 | . 2 . . . . . . . Flight 9 | . 4 . . . 4 1 . . Utility 6 | . 2 . . . 3 1 . . Device 3 | . 1 . . . 2 . . . Storage . | . . . . . . . . . Processor 3 | . 1 . . . 1 1 . . Hackware . | . . . . . . . . . Protection . | . . . . . . . . . Artifact . | . . . . . . . . . Weapon 11 | 2 . 3 . . 5 . 1 . Energy Gun 3 | . . 3 . . . . . . Energy Cannon 3 | . . . . . 3 . . . Ballistic Gun 3 | 2 . . . . 1 . . . Ballistic Cannon . | . . . . . . . . . Launcher 1 | . . . . . . . 1 . Special Weapon . | . . . . . . . . . Impact Weapon . | . . . . . . . . . Slashing Weapon 1 | . . . . . 1 . . . Piercing Weapon . | . . . . . . . . . Special Melee Weapon . | . . . . . . . . . Unidentified Prototypes 1 | . . . . . 1 . . . Parts Lost 1 | . . . . . 1 . . . Power . | . . . . . . . . . Propulsion 1 | . . . . . 1 . . . Utility . | . . . . . . . . . Weapon . | . . . . . . . . . Highest Loss Streak 1 | . . . . . 1 . . . To Critical Strikes . | . . . . . . . . . Average Slot Usage (%) 96 | . 90 100 100 100 95 99 96 92 Engine 19 | . 23 22 22 22 19 14 14 14 Leg 5 | . . . . . 18 . . . Hover 1 | . 6 . . . . . . . Flight 24 | . 21 33 33 33 10 33 35 35 Device 13 | . 10 11 11 11 16 14 14 14 Processor 10 | . 3 11 11 11 9 13 14 14 Energy Gun 7 | . . 16 22 22 6 . . . Energy Cannon 5 | . . . . . 7 14 8 . Ballistic Gun 6 | . 23 5 . . 5 . . . Slashing Weapon 1 | . . . . . . 7 7 7 Peak Build Rating 59 | 6 9 13 13 13 47 55 59 59 Average Rating 27 | 5 7 12 13 13 31 53 56 59 On Entrance 23 | . 6 9 13 13 13 47 55 59 Naked Turns . | . . . . . . . . . Heaviest Build 34 | 8 9 21 21 21 34 34 34 27 Greatest Support 55 | 26 26 22 22 22 55 45 45 45 Greatest Overweight (x) 2 | 2 2 . . . 1 . . . Average Overweight (x) . | . . . . . . . . . Largest Inventory Capacity 1 | . 1 1 1 1 1 1 1 1 Average Capacity . | . . 1 1 1 1 1 1 1 Most Carried 1 | . 1 1 1 1 1 1 1 1 Average Carried . | . . . 1 1 . 1 1 1 Final Capacity 1 | . 1 1 1 1 1 1 1 1 Final Carried 1 | . 1 1 1 1 1 1 1 1 Class Distribution -------------------- 47% | Hacker-Mutant 27% | Hacker-Sprinter 23% | Scavenger-Mutant Dominant Class ---------------- Hacker-Mutant | -10/Materials Scavenger-Mutant | -10/Mines Scavenger-Mutant | -10/Exiles Scavenger-Mutant | -9/Mines Hacker-Mutant | -8/Materials Hacker-Sprinter | -7/Factory Hacker-Sprinter | -7/Waste Hacker-Sprinter | -7/Factory Resources | -11 -10 -10 -10 -9 -8 -7 -7 -7 ----------- Run | Yrd Mat Min Exi Min Mat Fac Was Fac Matter Collected 746 | 164 270 52 . . 171 80 9 . Remotely . | . . . . . . . . . Salvage Created 1939 | . 403 171 . 92 368 347 547 11 Parts 102 | . 47 8 . 2 26 17 1 1 Haulers Intercepted . | . . . . . . . . . Recyclers Shooed 1 | . 1 . . . . . . . Parts Field Recycled . | . . . . . . . . . Retrieved Matter . | . . . . . . . . . Parts Self-Destructed . | . . . . . . . . . Prevented . | . . . . . . . . . Kills | -11 -10 -10 -10 -9 -8 -7 -7 -7 ------- Run | Yrd Mat Min Exi Min Mat Fac Was Fac Combat Hostiles Destroyed 47 | . 18 4 . 9 12 3 1 . Melee 1 | . . . . . . 1 . . Guns 38 | . 18 4 . 9 7 . . . Cannons 8 | . . . . . 5 2 1 . Classes Destroyed 9 | . 3 . . 2 2 1 1 . Builder 1 | . . . . 1 . . . . Operator 2 | . . . . . 1 1 . . Watcher 10 | . 3 . . . 4 3 . . Swarmer 11 | . 9 2 . . . . . . Grunt 19 | . 9 2 . . 6 2 . . Sentry 6 | . . . . . 6 . . . Hunter 1 | . . . . . . . 1 . Programmer 1 | . . . . . . 1 . . Assembled 9 | . . . . 9 . . . . Wasp 1 | . . . . . . . . 1 Best Kill Streak 8 | . 8 2 . 6 2 2 1 . Combat Bots Only 6 | . 6 2 . 5 2 1 1 . Max Kills in Single Turn 2 | . 2 1 . 2 1 1 1 1 Gunslinging 1 | . 1 . . . . . . . Exploded . | . . . . . . . . . Melee 1 | . . . . . . 1 . . Uniques/NPCs Destroyed . | . . . . . . . . . Combat | -11 -10 -10 -10 -9 -8 -7 -7 -7 -------- Run | Yrd Mat Min Exi Min Mat Fac Was Fac Hostile Shots Fired 230 | . 54 10 . 44 49 55 . 18 Missed 100 | . 18 5 . 21 17 31 . 8 Damage Taken 1324 | . 266 36 . 405 379 186 . 52 Core 1065 | . 217 29 . 331 292 154 . 42 Absorbed by Shields . | . . . . . . . . . Redirected to Core 810 | . 144 22 . 246 267 101 . 30 Ignored by Resistances 390 | . 84 12 . 110 105 59 . 20 Core Remaining (%) 92 | 100 . . . 77 100 . . . Volleys Fired 141 | . 47 8 . 23 42 15 2 4 Largest 2 | . 2 2 . 2 2 2 2 1 Hottest 130 | . 40 121 . 121 130 130 130 46 Shots Fired 277 | . 94 16 . 46 84 29 4 4 Gun 212 | . 94 16 . 46 56 . . . Cannon 61 | . . . . . 28 29 4 . Launcher 4 | . . . . . . . . 4 Special . | . . . . . . . . . Kinetic 116 | . 94 2 . . 20 . . . Thermal 157 | . . 14 . 46 64 29 4 . Explosive 4 | . . . . . . . . 4 Electromagnetic . | . . . . . . . . . Robot Hit Streak 23 | . 12 12 . 10 23 16 3 . Robot Miss Streak 3 | . 2 1 . 3 1 1 . . Penetration Max . | . . . . . . . . . Secondary Targets 9 | . 4 . . 5 . . . . Max Gunslinging Chain 1 | . 1 . . 1 . . . . Shots Hit Robots 206 | . 66 14 . 33 67 21 5 . Core Hits 103 | . 37 6 . 21 28 8 . 3 Critical Kills 2 | . 1 . . . . . 1 . Critical Parts Destroyed 1 | . 1 . . . . . . . Critical Strikes 8 | . 2 . . 5 . . 1 . Burn 5 | . . . . 5 . . . . Meltdown 1 | . . . . . . . 1 . Destroy 2 | . 2 . . . . . . . Melee Attacks 19 | . . . . . . 15 2 2 Impact . | . . . . . . . . . Slashing 19 | . . . . . . 15 2 2 Piercing . | . . . . . . . . . Sneak Attacks 2 | . . . . . . 2 . . Combat Hostiles . | . . . . . . . . . Follow-up Attacks . | . . . . . . . . . Damage Inflicted 4251 | . 547 194 . 522 1512 921 169 386 Guns 2137 | . 547 194 . 522 874 . . . Cannons 1076 | . . . . . 638 341 97 . Explosions 386 | . . . . . . . . 386 Melee 652 | . . . . . . 580 72 . Ramming . | . . . . . . . . . Kinetic 950 | . 547 20 . . 383 . . . Thermal 2263 | . . 174 . 522 1129 341 97 . Explosive 386 | . . . . . . . . 386 Electromagnetic . | . . . . . . . . . Impact . | . . . . . . . . . Slashing 652 | . . . . . . 580 72 . Piercing . | . . . . . . . . . Highest Corruption 2 | . . . . . . 1 1 2 Average Corruption 1 | . . . . . . 1 1 1 Corruption Purged . | . . . . . . . . . Corruption Blocked . | . . . . . . . . . Effects 4 | . . . . . . 3 1 . Message Errors 1 | . . . . . . . 1 . Matter Fused 1 | . . . . . . 1 . . Energy Discharges 1 | . . . . . . 1 . . Weapon Failures 1 | . . . . . . 1 . . Overload Shots . | . . . . . . . . . Overflow Damage 168 | . . . . . 67 75 25 1 Projectiles 101 | . . . . . 67 9 25 . Explosions 1 | . . . . . . . . 1 Melee 66 | . . . . . . 66 . . Knockbacks . | . . . . . . . . . Impact . | . . . . . . . . . Kinetic . | . . . . . . . . . Secondary . | . . . . . . . . . Self-Inflicted Damage . | . . . . . . . . . Shots . | . . . . . . . . . Rammed . | . . . . . . . . . Targets Rammed 1 | . . . . . 1 . . . Kicked 1 | . . . . . 1 . . . Crushed . | . . . . . . . . . Highest Temperature 112 | . 112 19 . . 9 3 . . Average Temperature 30 | . 31 12 . . 5 3 . . Received Heat Transfer 495 | . 132 12 . . 279 60 . 12 Siege Activations . | . . . . . . . . . Robots Corrupted . | . . . . . . . . . Combat Hostiles . | . . . . . . . . . Parts Fried . | . . . . . . . . . Impact Corruptions . | . . . . . . . . . Robots Melted 1 | . . . . . . . 1 . Combat Hostiles 1 | . . . . . . . 1 . Parts Melted 4 | . . 1 . . 3 . . . Heat Transferred 4477 | . . 444 . 1665 1924 333 111 . Parts Sabotaged . | . . . . . . . . . Parts Stolen . | . . . . . . . . . Parts Stripped . | . . . . . . . . . Power Chain Reactions . | . . . . . . . . . Alert | -11 -10 -10 -10 -9 -8 -7 -7 -7 ------- Run | Yrd Mat Min Exi Min Mat Fac Was Fac Peak Influence 589 | . 589 157 . 20 272 158 31 209 Initial 23 | . . 23 . . 1 . 9 18 Average 105 | . 219 89 . 7 114 57 28 123 Maximum Alert Level 2 | . 2 . . . 1 . . 1 Low Security (%) 85 | 100 58 100 . 100 81 100 100 78 Level 1 7 | . 5 . . . 18 . . 21 Level 2 6 | . 35 . . . . . . . Level 3 . | . . . . . . . . . Level 4 . | . . . . . . . . . Level 5 . | . . . . . . . . . High Security . | . . . . . . . . . Max Security . | . . . . . . . . . Squads Dispatched 13 | . 3 1 . 1 3 5 . . Investigation 8 | . 3 1 . 1 . 3 . . Extermination 1 | . . . . . . 1 . . Reinforcement 4 | . . . . . 3 1 . . Assault . | . . . . . . . . . Garrison . | . . . . . . . . . Intercept . | . . . . . . . . . Searches Triggered . | . . . . . . . . . Construction Impeded 1 | . . . . . 1 . . . Haulers Reinforced 1 | . . . . . . 1 . . Active Scanning Responses . | . . . . . . . . . Cargo Convoy Interrupts . | . . . . . . . . . Stealth | -11 -10 -10 -10 -9 -8 -7 -7 -7 --------- Run | Yrd Mat Min Exi Min Mat Fac Was Fac Distress Signals 2 | . 1 . . . . 1 . . Communications Jammed . | . . . . . . . . . Distress Signals . | . . . . . . . . . Times Spotted 87 | . 25 7 . 20 18 14 1 2 Peak Tracking Total 8 | . 8 2 . 7 3 4 1 1 Tactical Retreats 5 | . 3 . . 1 1 . . . Traps | -11 -10 -10 -10 -9 -8 -7 -7 -7 ------- Run | Yrd Mat Min Exi Min Mat Fac Was Fac Traps Triggered 4 | . 2 . . . . 1 . 1 Indirectly . | . . . . . . . . . Trap Hack Attempts . | . . . . . . . . . Triggered . | . . . . . . . . . Disarmed . | . . . . . . . . . Reprogrammed 8 | . 6 . . . . 2 . . Reused . | . . . . . . . . . Traps Extracted . | . . . . . . . . . Installed . | . . . . . . . . . Triggered . | . . . . . . . . . Machines | -11 -10 -10 -10 -9 -8 -7 -7 -7 ---------- Run | Yrd Mat Min Exi Min Mat Fac Was Fac Machines Disabled 4 | . . . . . . . . 4 Max in Single Turn 1 | . . . . . . . . 1 Machines Repaired . | . . . . . . . . . Machines Dismantled . | . . . . . . . . . Machines Sabotaged . | . . . . . . . . . Overloaded Fab Kills . | . . . . . . . . . Hacking | -11 -10 -10 -10 -9 -8 -7 -7 -7 --------- Run | Yrd Mat Min Exi Min Mat Fac Was Fac Machines Accessed 25 | . 10 1 . 3 2 7 . 2 Terminals 20 | . 8 1 . 2 2 5 . 2 Fabricators 1 | . . . . . . 1 . . Repair Stations . | . . . . . . . . . Recycling Units 2 | . 2 . . . . . . . Scanalyzers . | . . . . . . . . . Garrison Access 1 | . . . . . . 1 . . Total Hacks 89 | . 45 4 . 7 4 23 . 6 Successful 57 | . 26 4 . 4 4 15 . 4 Failed 32 | . 19 . . 3 . 8 . 2 Catastrophic 2 | . 2 . . . . . . . Database Lockouts . | . . . . . . . . . Manual 68 | . 36 5 . 6 1 16 . 4 Terminals 83 | . 43 4 . 6 4 20 . 6 Fabricators 2 | . . . . . . 2 . . Repair Stations . | . . . . . . . . . Recycling Units 2 | . 2 . . . . . . . Scanalyzers . | . . . . . . . . . Garrison Access 1 | . . . . . . 1 . . Terminal Hacks 34 | . 14 3 . 4 3 8 . 2 Part Schematic 1 | . 1 . . . . . . . Robot Schematic 1 | . . . . . . 1 . . Robot Analysis 5 | . . 2 . . . 3 . . Prototype ID Bank 2 | . 2 . . . . . . . Open Door 1 | . . . . 1 . . . . Branch Access Points 2 | . . . . . . 1 . 1 Machine Index 1 | . 1 . . . . . . . Terminal Index 2 | . 1 . . . . 1 . . Alert Level 5 | . 2 . . 1 . 1 . 1 Unreport Threat 8 | . 3 . . 2 3 . . . Reprogram Traps 2 | . 1 . . . . 1 . . Security Status 1 | . 1 . . . . . . . Registered Components 1 | . 1 . . . . . . . Zone Layout 2 | . 1 1 . . . . . . Fabricator Hacks 2 | . . . . . . 2 . . Load Schematic 1 | . . . . . . 1 . . Build 1 | . . . . . . 1 . . Repair Station Hacks . | . . . . . . . . . Recycling Unit Hacks . | . . . . . . . . . Scanalyzer . | . . . . . . . . . Garrison Access Hacks . | . . . . . . . . . Unauthorized Hacks 21 | . 12 1 . . 1 5 . 2 Terminals 18 | . 10 1 . . 1 4 . 2 Track 3 | . 2 . . . . 1 . . Botnet 14 | . 7 1 . . 1 3 . 2 Operators 1 | . 1 . . . . . . . Fabricators . | . . . . . . . . . Repair Stations . | . . . . . . . . . Recycling Units 2 | . 2 . . . . . . . Tunnel 2 | . 2 . . . . . . . Scanalyzers . | . . . . . . . . . Garrison Access 1 | . . . . . . 1 . . Reprogram 1 | . . . . . . 1 . . Data Cores Recovered 1 | . . . . . . 1 . . Used 1 | . . . . . . 1 . . Hacking Detections 18 | . 8 1 . 1 1 5 . 2 Full Trace Events 4 | . 1 1 . . . 2 . . Feedback Events . | . . . . . . . . . Feedback Blocked . | . . . . . . . . . Robot Schematics Acquired 1 | . . . . . . 1 . . Robots Built . | . . . . . . . . . Authchips . | . . . . . . . . . Time 134 | . . . . . . 134 . . Total Robot Build Rating . | . . . . . . . . . Part Schematics Acquired 1 | . 1 . . . . . . . Parts Built . | . . . . . . . . . Authchips . | . . . . . . . . . Time . | . . . . . . . . . Total Part Build Rating . | . . . . . . . . . Parts Repaired . | . . . . . . . . . Time . | . . . . . . . . . Parts Recycled . | . . . . . . . . . Recycled Matter . | . . . . . . . . . Retrieved Matter . | . . . . . . . . . Retrieved Components . | . . . . . . . . . Parts Scanalyzed . | . . . . . . . . . Part Schematics Acquired . | . . . . . . . . . Parts Damaged . | . . . . . . . . . Bothacking | -11 -10 -10 -10 -9 -8 -7 -7 -7 ------------ Run | Yrd Mat Min Exi Min Mat Fac Was Fac Used RIF Installer . | . . . . . . . . . Robots Hacked . | . . . . . . . . . Non-combat . | . . . . . . . . . Combat . | . . . . . . . . . Robot Hacks Applied . | . . . . . . . . . Relay Couplers Released 1 | . . . . . . 1 . . Programmers 1 | . . . . . . 1 . . Fabnet Peak Effective % . | . . . . . . . . . Robots Rewired . | . . . . . . . . . Allies Hacked . | . . . . . . . . . Hacks Repelled . | . . . . . . . . . Allies | -11 -10 -10 -10 -9 -8 -7 -7 -7 -------- Run | Yrd Mat Min Exi Min Mat Fac Was Fac Total Allies 26 | . . 1 . . . 3 22 . Largest Group 22 | . . 1 1 . . 3 22 21 Highest-Rated Group 554 | . . 31 31 . . 48 554 542 Highest-Rated Ally 35 | . . 31 31 . . 16 35 35 Total Orders . | . . . . . . . . . Ally Attacks 48 | . . . . . . 15 18 15 Total Damage 532 | . . . . . . 224 113 195 Kills 3 | . . . . . . 1 . 2 Allies Corrupted 4 | . . . . . . . . 4 Allies Melted . | . . . . . . . . . Intel | -11 -10 -10 -10 -9 -8 -7 -7 -7 ------- Run | Yrd Mat Min Exi Min Mat Fac Was Fac Robot Analysis Total 5 | . . 2 . . . 3 . . Derelict Logs Recovered 4 | . . 2 . 2 . . . . Drone Launches . | . . . . . . . . . Drone Recoveries . | . . . . . . . . . Exploration | -11 -10 -10 -10 -9 -8 -7 -7 -7 ------------- Run | Yrd Mat Min Exi Min Mat Fac Was Fac Turns Passed 2793 | 62 509 407 69 234 854 476 103 79 Spaces Moved 4414 | 58 692 788 184 406 754 1124 190 218 Core 7 | 7 . . . . . . . . Treads . | . . . . . . . . . Legs 339 | . . . . . 339 . . . Wheels 63 | 51 12 . . . . . . . Hover 194 | . 194 . . . . . . . Flight 3811 | . 486 788 184 406 415 1124 190 218 Fastest Speed 28 | 50 34 34 34 34 31 28 28 28 Average Speed 42 | 91 42 34 34 34 80 28 28 28 Slowest Speed 200 | 150 200 34 34 34 150 31 28 28 Overloaded Moves . | . . . . . . . . . Propulsion Burnouts . | . . . . . . . . . Robots Hopped 36 | . 3 7 . 7 14 4 1 . Cave-ins Triggered . | . . . . . . . . . Exploration Rate (%) 56 | 3 88 98 58 86 54 23 95 6 Regions Visited 8 Branch Regions 3 Pre-discovered Areas 3 | . 2 1 . . . . . . Known Exits Taken 5 | . 1 1 1 1 1 . . . Unknown Exits Taken 1 | 1 . . . . . . . . Scrap Searched 3 | . . 1 . 2 . . . . Spaces Dug 19 | . . . . . 1 18 . . Terrain Destroyed 106 | . . . . . 5 20 1 80 Melee . | . . . . . . . . . Projectile 26 | . . . . . 5 20 1 . AOE 80 | . . . . . . . . 80 Terrain Rammed . | . . . . . . . . . Walls Destroyed . | . . . . . . . . . Machines Disabled . | . . . . . . . . . Actions | -11 -10 -10 -10 -9 -8 -7 -7 -7 --------- Run | Yrd Mat Min Exi Min Mat Fac Was Fac Total 5006 | 63 826 904 189 448 898 1219 231 228 Wait 351 | . 65 102 6 16 71 53 36 2 Move 4341 | 57 686 773 183 394 726 1117 187 218 Hop 30 | . 2 7 . 4 13 3 1 . Pick Up 2 | . 1 1 . . . . . . Fast Attach 18 | 6 4 . . . 5 2 1 . Attach 1 | . . . . . 1 . . . Detach . | . . . . . . . . . Swap 19 | . 4 5 . . 10 . . . Drop 8 | . . 4 . . 2 . 2 . Fire 141 | . 47 8 . 23 42 15 2 4 Melee 19 | . . . . . . 15 2 2 Ram . | . . . . . . . . . Kick 1 | . . . . . 1 . . . Crush . | . . . . . . . . . Escape Stasis . | . . . . . . . . . Rewire 3 | . . . . . . 2 . 1 Trap . | . . . . . . . . . Miscellaneous 72 | . 17 4 . 11 27 12 . 1 Route ------- -11/Scrapyard -10/Materials (discovered 5 exits: *Mat x3 / *Min x2) -10/Mines (discovered 3 exits: *Mat x2 / *Exi) -10/Exiles (discovered 2 exits: *Min x2) -9/Mines (discovered 2 exits: *Mat x2) -8/Materials (discovered 2 exits: *Fac x2) -7/Factory (discovered 3 exits: Sto / *Low x2) -7/Waste -7/Factory (discovered 3 exits: Sto / Low x2) History --------- Turn | Location | Event 1 | -11/Scrapyard | Upgraded with Power slot (x1) 1 | -11/Scrapyard | Upgraded with Propulsion slot (x1) 1 | -11/Scrapyard | Upgraded with Utility slot (x1) 1 | -11/Scrapyard | Upgraded with Weapon slot (x1) 10 | -11/Scrapyard | Discovered new exit (range 16) 63 | -11/Scrapyard | Entered Materials 135 | -10/Materials | Discovered new exit (range 10) 173 | -10/Materials | Discovered new exit (range 7) 296 | -10/Materials | Discovered new exit (range 16) 334 | -10/Materials | Reached level 2 359 | -10/Materials | Upgraded with Propulsion slot (x1) 380 | -10/Materials | Build established: Hacker-Mutant 486 | -10/Materials | Discovered new exit (range 15) 551 | -10/Materials | Discovered new exit (range 16) 572 | -10/Materials | Identified exit to Mines 572 | -10/Materials | Entered Mines 574 | -10/Mines | Reached level 3 593 | -10/Mines | Deemed a non-threat by the Exiles lab entrance 593 | -10/Mines | Discovered new exit (range 5) 594 | -10/Mines | Identified exit to Exiles 600 | -10/Mines | Discovered new exit (range 16) 632 | -10/Mines | Discovered new exit (range 10) 639 | -10/Mines | Identified exit to Materials 663 | -10/Mines | Joined a pair of Derelicts in attacking an 0b10 outpost 711 | -10/Mines | Found a damaged Exp. Sensor Array with a note attached 712 | -10/Mines | Found Prototype Device 721 | -10/Mines | Learned location of Recycling (-7) 784 | -10/Mines | Received a Mining Laser from a helpful Derelict 971 | -10/Mines | Build established: Scavenger-Mutant 979 | -10/Mines | Entered Exiles 979 | -10/Exiles | Accompanied by 1 ally 980 | -10/Exiles | Identified exit to Mines 995 | -10/Exiles | Met 8R-AWN 1000 | -10/Exiles | Met EX-HEX 1009 | -10/Exiles | Met EX-BIN 1032 | -10/Exiles | Met EX-DEC 1048 | -10/Exiles | Entered Mines 1049 | -9/Mines | Assembled infested the area 1064 | -9/Mines | Met a Derelict shopkeep closing up shop 1083 | -9/Mines | Discovered new exit (range 11) 1086 | -9/Mines | Identified exit to Materials 1087 | -9/Mines | Learned location of 1 exit from Lower Caves 1154 | -9/Mines | Discovered exit to Materials (range 13) 1282 | -9/Mines | Entered Materials 1284 | -8/Materials | Reached level 4 1284 | -8/Materials | Reached level 5 1284 | -8/Materials | Reached level 6 1377 | -8/Materials | Reached level 7 1439 | -8/Materials | Discovered new exit (range 10) 1499 | -8/Materials | Upgraded with Utility slot (x1) 1499 | -8/Materials | Identified Exp. Sensor Array 1614 | -8/Materials | Build established: Hacker-Mutant 1804 | -8/Materials | Discovered new exit (range 7) 1941 | -8/Materials | Upgraded with Propulsion slot (x1) 2068 | -8/Materials | Reached level 8 2087 | -8/Materials | Upgraded with Utility slot (x1) 2087 | -8/Materials | Upgraded with Weapon slot (x1) 2119 | -8/Materials | Met 7R-MNS 2127 | -8/Materials | Identified exit to Factory 2136 | -8/Materials | Entered Factory 2137 | -7/Factory | Caught up to 7R-MNS 2137 | -7/Factory | Identified exit to Storage 2138 | -7/Factory | Reached level 9 2249 | -7/Factory | Upgraded with Propulsion slot (x1) 2347 | -7/Factory | Build established: Hacker-Sprinter 2403 | -7/Factory | Identified exit to Lower Caves 2417 | -7/Factory | Reached level 10 2612 | -7/Factory | Sucked down chute 2612 | -7/Factory | Entered Waste 2612 | -7/Waste | Met up with 2 allies sucked down the chute earlier 2613 | -7/Waste | Joined by Warlord forces that had cleared the area 2627 | -7/Waste | 1 allies followed down the chute 2675 | -7/Waste | Discovered new exit (range 11) 2699 | -7/Waste | Identified exit to Factory 2715 | -7/Waste | Entered Factory 2715 | -7/Factory | Accompanied by 21 allies 2794 | -7/Factory | Self-destructed Last Messages --------------- T9-16V(s). 02759_ Triggered Shock Trap. 02759_ The floor emits a surge of raw power. 02759_ System corrupted (+1). 02764_ Connecting with Terminal... >>Trojan(Botnet) Trojan loaded successfully. Testing... Terminal linked with 0 systems. Awaiting botnet instructions. 02775_ Terminal disabled. 02777_ MB-JD4(d) destroyed. 02777_ Y-54 Guardian destroyed. 02785_ LK-XH2(s) destroyed. 02785_ 00-68B(s) destroyed. 02785_ 3O-SAW(d) shuts down. 02786_ K4-Y4F(m) system terminally corrupted. 02786_ 05-3H6(g) system terminally corrupted. 02788_ Reactivated 3O-SAW(d). 02791_ PB-JFP(m) repairs G-47 Trooper. Map ----- +----------------------------------------------------+ | ?????????????????????????????????????????????????? | | ?????????????????????????????????????????????????? | | ?????????????????????????????????????????????????? | | ?????????????????????????????????????????????????? | | ?????????????????????????????????????????????????? | | ?????????????????????????????????????????????????? | | ?????????????????????????????????????????????????? | | ????????????????????????????????????########### ? | | ????????????????????????????????????#! # | | ????????????????????????????????????# # "" | | ????????????????????????????????????# # "" | | ????????????????????????????????????# # "" | | ????????????????????????????????????# # | | ?????????s??????????????????????????? # | | ??????????????????????#####???????????? #? | | ????????????k?????????? #?????????????? #### | | ?????????????k??????????# #################/### | | ????????????????????????# | | ????????????????????????# %% * | | ????????????????????????# d d %= | | ????????????????????????# | | ????????????????????????# g | | ????????????????????????# ########## g | | ????????????????????????# #????????# m % | | ????????????????????????# #????????# gg %% | | ????????????????????????#@#????????# | | ????????????????????????# #????????# s | | ????????????????????????# #????????# =%% | | ????????????????????????# #????????# =g | | ????????????????????????# #????????#######% | | ????????????????????????# #??????????????# | | ????????????????????????# #??????????????#### | | ????????????????????????# #?????????????????# | | ???????????????????????? ??????????######## | | ???????????????????????? ??????????# # | | ???????????????????????? !??????????# # | | ???????????????????????? ??????????# + | | ???????????????????????? ??????????# # | | ???????????????????????? ??????????# # ## | | ???????????????????????? ??????????# # #? | | ???????????????????????? ??????????######## #? | | ????????????????????????????????????????????# #? | | ????????????????????????????????????????????# #? | | ????????????????????????????????????????????# #? | | ????????????????????????????????????????????# #? | | ??????????????????????????????????????####### #? | | ??????????????????????????????????????# ## #? | | ??????????????????????????????????????# ## #? | | ??????????????????????????????????????# ## ## | | ??????????????????????????????????????# !## | +----------------------------------------------------+ Best States ------------- Heat Dissipation 73 Energy Generation 21 Energy Capacity 430 Matter Stores 300 Matter Capacity 300 Sight Range 16 Robot Scan Range 20 Terrain Scan Density 10 Resistance: KI 20 Resistance: TH 20 Resistance: EX 20 Resistance: EM 20 Resistance: I 20 Resistance: S 20 Resistance: P 20 Evasion (%) 64 Melee Accuracy 6 Particle Charging 15 Offensive Hacking 25 Defensive Hacking 10 Item Schematics ----------------- Mining Claw | -10/Materials | Hacked Robot Schematics ------------------ L-41 Fighter | -7/Factory | Hacked Fabricated ------------ Nothing Alien Tech Used ----------------- None Achievements -------------- None Challenges ------------ None RPGLIKE | -11 -10 -10 -10 -9 -8 -7 -7 -7 --------- Run | Yrd Mat Min Exi Min Mat Fac Was Fac Levels Raised 9 | . 1 1 . . 5 2 . . XP Earned 18841 | 4000 2569 1005 200 687 6083 3277 350 670 XP Spent 16010 | 2000 3050 1560 . . 7800 1400 . 200 Upgrades 34 | 4 8 9 . . 11 1 . 1 Power Slot 1 | 1 . . . . . . . . Propulsion Slot 4 | 1 1 . . . 1 1 . . Utility Slot 3 | 1 . . . . 2 . . . Weapon Slot 2 | 1 . . . . 1 . . . Heat Dissipation 8 | . . 8 . . . . . . Mass Support 3 | . 1 1 . . 1 . . . Inventory Capacity 1 | . 1 . . . . . . . Ranged Accuracy 4 | . . . . . 4 . . . Melee Accuracy 1 | . . . . . . . . 1 Hack Attack % 3 | . 3 . . . . . . . Hack Defense % 2 | . 2 . . . . . . . TH Damage % 2 | . . . . . 2 . . . Protomatter Created 679 | . 247 16 . 65 351 . . . Integrity Restored 1248 | . 277 62 . 195 519 186 . 9 Core 1032 | . 217 29 . 195 428 154 . 9 Parts 216 | . 60 33 . . 91 32 . . Protomatter Decayed 813 | . 34 . . . 457 191 131 . Game ------ Seed NuclearKineticRefractor Manual? 0 Play Time 00:53:31 Cumulative 103.0 hours Start 2024.09.16 @ 07:28:00 End 2024.09.17 @ 07:42:20 Sessions 4 Manual Loads 0 Difficulty Adventurer Special Mode Winter2019/RPGLIKE Game No. 62 Rogue 0 Adventurer 62 Explorer 0 Win Type - Total 4 Types 2/0/1/1/0/0/0/0/0 Lore% 52 Gallery% 53 Achievement% 69 Wizard Run 0 Options --------- Layout 2 ASCII 0 Keyboard 0 Movement Numpad Keybinds 0 Fullscreen 2 Font 24/Smallcaps Map View 50x44 Zoom Use 0% Tactical HUD 1 Map Filters NONE Filters NONE Steam 1 RUN: 8302a7f7-b7c7-4cd4-a4d2-21c0b10fd66e